bitfinex/quotes_SOLUSD_20240530
["timestamp","ask_amount","ask_price","bid_price","bid_amount"]
[1717101368206,6.21748891,167.46,167.35,45.0]
[1717101368426,2.2105,167.39,167.35,45.0]
[1717101369622,2.2103,167.4,167.35,47.2109]
[1717101371819,2.2104,167.39,167.35,47.2109]
[1717101372028,2.2105,167.38,167.35,45.0]
[1717101373625,2.2103,167.4,167.35,47.2108]
[1717101373813,2.2104,167.39,167.35,47.2108]
[1717101374321,2.2103,167.4,167.35,47.2108]
[1717101375010,2.2104,167.39,167.35,47.2108]
[1717101375505,6.21748891,167.46,167.35,51.577]
[1717101375506,2.21,167.42,167.35,51.577]
[1717101375826,2.2097,167.44,167.4,2.2102]
[1717101376435,2.2096,167.45,167.39,6.577]
[1717101376724,2.2096,167.45,167.41,8.7871]
[1717101377029,2.2097,167.44,167.42,45.0]
[1717101379101,2.2096,167.45,167.42,45.0]
[1717101379401,2.2095,167.46,167.42,45.0]
[1717101380117,2.2095,167.46,167.42,47.21]
[1717101380811,2.2095,167.46,167.42,45.0]
[1717101381017,2.2093,167.48,167.44,8.7866]
[1717101381316,2.2093,167.48,167.45,45.0]
[1717101381897,6.21800284,167.54,167.45,47.2095]
[1717101382327,6.21800284,167.54,167.45,2.2095]
[1717101382527,6.21800284,167.54,167.46,6.1642]
[1717101382825,8.74040639,167.55,167.47,45.0]
[1717101383825,2.31890639,167.55,167.47,47.2092]
[1717101384020,2.31890639,167.55,167.48,2.2091]
[1717101384224,6.21738117,167.56,167.47,47.2093]
[1717101384423,6.21738117,167.56,167.48,2.2091]
[1717101385460,21.2124,167.59,167.48,2.2091]
[1717101385635,21.2124,167.59,167.47,47.2093]
[1717101385815,27.42845365,167.59,167.47,47.2093]
[1717101386208,2.2087,167.52,167.47,47.2093]
[1717101386409,2.2087,167.52,167.48,6.3394]
[1717101386609,2.2087,167.52,167.49,45.0]
[1717101387123,2.2088,167.51,167.49,45.0]
[1717101388210,2.2086,167.53,167.49,51.1383]
[1717101388423,2.2086,167.53,167.49,51.042]
[1717101388933,2.2087,167.52,167.49,51.042]
[1717101391209,2.2096,167.46,167.44,6.1937]
[1717101391416,2.2093,167.47,167.44,6.1937]
[1717101391713,12.23985365,167.59,167.43,6.1937]
[1717101391923,2.2092,167.48,167.44,6.4756]
[1717101392141,2.2092,167.48,167.44,8.6853]
[1717101392336,2.2085,167.54,167.49,2.209]
[1717101392543,2.31890639,167.58,167.5,2.2089]
[1717101392838,2.2085,167.54,167.5,6.4756]
[1717101393151,2.2085,167.54,167.51,45.0]
[1717101393748,2.2085,167.53,167.51,45.0]
[1717101394640,2.2084,167.54,167.51,51.3803]
[1717101394938,2.2081,167.57,167.53,6.3803]
[1717101395115,6.459,167.63,167.54,45.0]
[1717101395320,6.216054,167.62,167.55,6.4496]
[1717101395622,2.2077,167.6,167.56,45.0]
[1717101397228,6.21180936,167.64,167.57,22.0307]
[1717101397434,2.207,167.65,167.6,2.2076]
[1717101397653,2.207,167.65,167.59,2.2077]
[1717101397819,4.77037758,167.72,167.58,45.0]
[1717101397820,6.20693149,167.69,167.58,45.0]
[1717101398026,8.52583788,167.69,167.58,45.0]
[1717101398345,8.52583788,167.69,167.57,45.0]
[1717101398654,2.2074,167.62,167.57,45.0]
[1717101398958,8.52583788,167.69,167.57,45.0]
[1717101399747,8.52583788,167.69,167.57,47.208]
[1717101400527,8.52583788,167.69,167.57,45.0]
[1717101401328,8.52583788,167.69,167.57,47.2079]
[1717101402430,2.2074,167.62,167.57,47.2079]
[1717101403220,2.2075,167.61,167.57,45.0]
[1717101405553,2.2075,167.61,167.57,47.208]
[1717101406553,2.2074,167.62,167.57,47.208]
[1717101406749,2.2074,167.62,167.57,53.5688]
[1717101407729,2.2075,167.61,167.57,53.5688]
[1717101408540,2.2076,167.6,167.57,51.3608]
[1717101408851,2.2076,167.6,167.57,45.0]
[1717101409462,2.2075,167.61,167.57,45.0]
[1717101409631,2.2073,167.63,167.57,45.0]
[1717101409830,2.2073,167.63,167.59,2.2077]
[1717101410433,2.2073,167.63,167.58,2.2078]
[1717101411168,2.2074,167.62,167.57,53.5687]
[1717101411328,2.2074,167.62,167.58,2.2078]
[1717101411950,2.2075,167.61,167.57,53.5687]
[1717101412752,2.2071,167.64,167.59,2.2076]
[1717101412955,2.31890639,167.69,167.59,45.0]
[1717101413142,2.31890639,167.69,167.59,2.2077]
[1717101413356,8.52972834,167.69,167.59,2.2077]
[1717101413861,2.2072,167.63,167.59,2.2077]
[1717101414262,2.2071,167.64,167.59,8.5685]
[1717101414560,2.207,167.65,167.6,53.5684]
[1717101415063,8.52972834,167.69,167.6,53.5684]
[1717101415858,8.52972834,167.69,167.6,51.3608]
[1717101418260,2.2072,167.63,167.6,51.3608]
[1717101420541,2.2071,167.64,167.6,51.3608]
[1717101420876,2.2071,167.64,167.6,53.5684]
[1717101421163,2.2071,167.64,167.61,6.2384]
[1717101421352,2.2071,167.64,167.62,45.0]
[1717101423266,2.2072,167.63,167.62,45.0]
[1717101429449,2.2071,167.64,167.62,45.0]
[1717101430677,2.207,167.65,167.62,45.0]
[1717101430875,2.31890639,167.69,167.62,53.3704]
[1717101431175,2.2068,167.67,167.63,6.1631]
[1717101431353,2.2068,167.66,167.64,45.0]
[1717101431669,2.2069,167.65,167.64,45.0]
[1717101432352,2.2069,167.65,167.64,51.3201]
[1717101432753,2.2069,167.66,167.64,51.3201]
[1717101433075,2.2066,167.68,167.64,51.3201]
[1717101433251,6.21013286,167.72,167.64,51.3201]
[1717101433647,6.21013286,167.72,167.64,69.3401]
[1717101433870,6.244,167.77,167.67,2.2066]
[1717101434048,6.21140088,167.76,167.67,47.2066]
[1717101434670,6.21140088,167.76,167.67,45.0]
[1717101436774,2.2064,167.7,167.67,45.0]
[1717101441080,2.2062,167.71,167.67,45.0]
[1717101444766,2.2063,167.7,167.67,45.0]
[1717101445192,2.2062,167.71,167.67,45.0]
[1717101446083,6.19947808,167.74,167.62,6.3968]
[1717101446285,2.2069,167.65,167.62,6.3968]
[1717101447279,2.2068,167.66,167.62,8.6041]
[1717101447587,2.2068,167.66,167.63,45.0]
[1717101448582,2.207,167.65,167.63,45.0]
[1717101448865,2.2072,167.63,167.59,2.2077]
[1717101449066,2.2072,167.63,167.59,8.2209]
[1717101449278,2.2072,167.63,167.59,6.0132]
[1717101449479,2.2073,167.62,167.59,6.0132]
[1717101449678,2.2077,167.6,167.57,6.0132]
[1717101449883,2.2075,167.61,167.57,6.0132]
[1717101450091,2.2077,167.6,167.55,8.2214]
[1717101450975,2.2075,167.61,167.56,2.2081]
[1717101451278,2.2075,167.61,167.56,8.8139]
[1717101451486,2.2075,167.61,167.57,45.0]
[1717101451696,2.2075,167.61,167.57,47.208]
[1717101452186,6.5821,167.71,167.57,47.208]
[1717101452187,6.5821,167.71,167.59,2.2077]
[1717101452402,6.5821,167.71,167.6,2.2076]
[1717101452570,6.5821,167.71,167.59,2.2077]
[1717101452776,2.32056723,167.7,167.59,2.2077]
[1717101453078,2.32056723,167.7,167.57,63.02]
[1717101453278,2.32056723,167.7,167.58,25.55]
[1717101453477,2.32056723,167.7,167.62,2.2073]
[1717101454098,2.32056723,167.7,167.59,45.0]
[1717101454390,2.32056723,167.7,167.62,2.2072]
[1717101454770,2.32056723,167.7,167.63,2.2072]
[1717101454771,6.20038416,167.7,167.63,2.2072]
[1717101455507,6.2514,167.75,167.64,2.207]
[1717101456001,6.20058545,167.74,167.65,2.2069]
[1717101456168,6.20058545,167.74,167.66,2.2068]
[1717101456874,2.2063,167.7,167.66,6.2723]
[1717101457168,2.2063,167.7,167.67,45.0]
[1717101457388,2.2064,167.69,167.67,45.0]
[1717101457700,2.2065,167.68,167.67,45.0]
[1717101458894,2.2065,167.69,167.67,45.0]
[1717101459474,2.2065,167.68,167.67,45.0]
[1717101461800,6.20058545,167.74,167.67,45.0]
[1717101462497,2.2065,167.68,167.67,45.0]
[1717101466698,6.20385149,167.7,167.61,6.2723]
[1717101466897,2.2068,167.66,167.62,47.2073]
[1717101467100,2.2067,167.67,167.63,6.4222]
[1717101467398,2.2067,167.67,167.64,45.0]
[1717101467604,2.2068,167.66,167.64,45.0]
[1717101469622,2.2069,167.65,167.64,45.0]
[1717101470110,6.20385149,167.7,167.59,8.6299]
[1717101470405,2.2073,167.63,167.58,2.2078]
[1717101470611,2.2073,167.63,167.59,2.2077]
[1717101471110,2.2071,167.64,167.59,2.2077]
[1717101471607,2.2071,167.64,167.59,47.2077]
[1717101472115,8.52441872,167.7,167.59,45.0]
[1717101472294,2.2074,167.62,167.59,45.0]
[1717101475892,2.2075,167.61,167.59,45.0]
[1717101476312,2.2074,167.62,167.59,45.0]
[1717101477417,2.2075,167.61,167.59,45.0]
[1717101480218,6.20463033,167.66,167.59,45.0]
[1717101480531,2.2074,167.62,167.59,45.0]
[1717101480932,2.2073,167.63,167.59,45.0]
[1717101481220,2.2073,167.62,167.59,45.0]
[1717101482416,2.2072,167.64,167.6,2.2075]
[1717101482709,2.2071,167.64,167.6,51.5473]
[1717101483031,2.2071,167.64,167.6,53.7548]
[1717101483594,6.2044599,167.69,167.61,6.3003]
[1717101483923,2.2069,167.66,167.62,47.2072]
[1717101484298,6.2044599,167.69,167.62,45.0]
[1717101484299,2.2069,167.65,167.62,45.0]
[1717101487213,2.2071,167.64,167.62,45.0]
[1717101488715,2.207,167.65,167.62,45.0]
[1717101489117,2.2071,167.64,167.62,45.0]
[1717101490319,2.207,167.65,167.62,45.0]
[1717101490916,2.2071,167.64,167.62,45.0]
[1717101493802,2.207,167.65,167.62,45.0]
[1717101495501,2.2071,167.64,167.62,45.0]
[1717101496108,2.207,167.65,167.62,45.0]
[1717101496422,2.2071,167.64,167.62,45.0]
[1717101496826,6.2044599,167.69,167.62,45.0]
[1717101496827,2.2072,167.63,167.62,45.0]
[1717101498041,6.20897817,167.66,167.62,45.0]
[1717101499010,2.207,167.65,167.62,45.0]
[1717101499210,2.2071,167.64,167.62,45.0]
[1717101499434,6.20897817,167.66,167.64,6.5138]
[1717101499725,4.91280213,167.73,167.64,6.5138]
[1717101499726,2.2059,167.73,167.68,2.2065]
[1717101499935,8.41540801,167.72,167.65,45.0]
[1717101500104,8.41540801,167.72,167.66,2.2068]
[1717101500616,2.206,167.72,167.65,47.2069]
[1717101503033,6.20992041,167.75,167.65,45.0]
[1717101503607,2.2063,167.71,167.65,47.2069]
[1717101504325,6.20992041,167.75,167.65,45.0]
[1717101504532,6.20992041,167.75,167.6,6.5433]
[1717101504704,2.207,167.65,167.6,8.7508]
[1717101505032,6.3908,167.73,167.58,2.2078]
[1717101505204,6.3908,167.73,167.57,2.208]
[1717101505408,2.2074,167.62,167.56,6.607]
[1717101505717,2.2074,167.62,167.57,8.5758]
[1717101505911,2.2072,167.63,167.57,8.5758]
[1717101506118,2.2072,167.63,167.58,2.2078]
[1717101506504,2.2072,167.63,167.58,47.2078]
[1717101507227,2.2073,167.62,167.58,45.0]
[1717101507602,2.2072,167.64,167.58,47.2078]
[1717101507799,2.2072,167.64,167.59,2.2077]
[1717101508023,6.3908,167.73,167.59,51.3898]
[1717101508229,2.2071,167.64,167.59,53.5975]
[1717101508430,2.2071,167.64,167.59,51.3898]
[1717101508604,2.2072,167.63,167.59,51.3898]
[1717101508806,2.2074,167.62,167.59,45.0]
[1717101509730,2.2075,167.61,167.59,45.0]
[1717101510314,2.2074,167.62,167.59,45.0]
[1717101510925,2.2075,167.61,167.59,45.0]
[1717101511909,2.2075,167.61,167.56,2.2081]
[1717101511910,6.20663088,167.64,167.54,2.2083]
[1717101512235,2.2077,167.59,167.54,2.2083]
[1717101513041,2.2079,167.58,167.54,45.0]
[1717101513229,2.2078,167.59,167.54,47.2083]
[1717101513735,2.2079,167.58,167.54,47.2083]
[1717101514229,2.2076,167.6,167.56,6.3898]
[1717101514435,2.2076,167.6,167.57,45.0]
[1717101516933,6.20663088,167.64,167.57,45.0]
[1717101517237,2.2071,167.64,167.6,2.2075]
[1717101517433,2.207,167.65,167.6,2.2075]
[1717101517831,2.207,167.65,167.61,2.2074]
[1717101518022,2.207,167.65,167.61,53.5972]
[1717101518217,2.2068,167.67,167.62,2.2073]
[1717101518422,2.2068,167.67,167.63,2.2072]
[1717101518942,2.2066,167.68,167.63,8.5969]
[1717101519147,2.2066,167.68,167.64,45.0]
[1717101519620,2.2067,167.67,167.64,45.0]
[1717101520446,8.52627923,167.72,167.65,2.2069]
[1717101520648,2.2065,167.69,167.64,47.2071]
[1717101521321,2.2066,167.68,167.64,45.0]
[1717101521631,8.52627923,167.72,167.64,45.0]
[1717101522018,2.2067,167.67,167.64,45.0]
[1717101525434,2.2066,167.68,167.64,47.207]
[1717101525948,2.2066,167.68,167.64,45.0]
[1717101526525,2.2066,167.68,167.64,47.207]
[1717101526728,2.2066,167.68,167.64,53.4526]
[1717101526924,2.2066,167.68,167.64,51.2456]
[1717101527425,2.2066,167.68,167.64,53.4527]
[1717101528522,2.2066,167.68,167.64,51.2456]
[1717101528719,2.2067,167.67,167.64,51.2456]
[1717101530420,2.2067,167.67,167.64,45.0]
[1717101530929,2.2068,167.66,167.64,45.0]
[1717101531144,2.2069,167.65,167.64,45.0]
[1717101531443,6.21039303,167.7,167.64,45.0]
[1717101531643,2.2069,167.65,167.64,45.0]
[1717101533745,2.2069,167.66,167.64,45.0]
[1717101534946,2.2069,167.65,167.64,45.0]
[1717101539063,2.2069,167.65,167.6,8.3598]
[1717101539231,2.2069,167.65,167.61,45.0]
[1717101539755,2.2069,167.65,167.61,47.2074]
[1717101541565,2.2072,167.63,167.61,45.0]
[1717101542052,2.2071,167.64,167.61,45.0]
[1717101544640,2.2072,167.63,167.61,45.0]
[1717101546563,2.2073,167.62,167.61,45.0]
[1717101547374,2.2073,167.63,167.61,45.0]
[1717101548163,2.2073,167.62,167.61,45.0]
[1717101549844,2.2072,167.63,167.61,45.0]
[1717101550343,2.2073,167.62,167.61,45.0]
[1717101551650,2.2073,167.63,167.61,45.0]
[1717101554071,2.2073,167.62,167.61,45.0]
[1717101557660,2.2073,167.62,167.56,6.5228]
[1717101557661,2.2075,167.61,167.57,2.2079]
[1717101557873,2.2075,167.61,167.57,47.2079]
[1717101558180,2.2075,167.61,167.57,53.2364]
[1717101558881,6.20740607,167.65,167.57,51.0285]
[1717101559067,2.2076,167.61,167.57,51.0285]
[1717101559261,2.2076,167.6,167.57,51.0285]
[1717101559466,2.2075,167.61,167.57,53.2365]
[1717101561265,2.2076,167.6,167.57,53.2365]
[1717101561484,2.2076,167.6,167.57,51.0285]
[1717101563687,2.2075,167.61,167.57,53.2365]
[1717101564190,2.2074,167.62,167.58,8.2363]
[1717101564381,2.2074,167.62,167.59,45.0]
[1717101564986,2.2075,167.61,167.59,45.0]
[1717101566284,2.2076,167.6,167.59,45.0]
[1717101566889,2.2075,167.61,167.59,45.0]
[1717101568195,2.2076,167.6,167.59,45.0]
[1717101569489,2.2075,167.61,167.59,45.0]
[1717101574793,2.2076,167.6,167.59,45.0]
[1717101578714,2.2075,167.61,167.59,45.0]
[1717101579695,2.2076,167.6,167.59,45.0]
[1717101584093,2.2075,167.61,167.59,45.0]
[1717101584296,2.2074,167.62,167.59,51.5852]
[1717101584897,2.2075,167.61,167.59,51.5852]
[1717101586399,2.2074,167.62,167.59,51.5852]
[1717101586813,2.2075,167.61,167.59,51.5852]
[1717101590517,2.2076,167.6,167.59,51.5852]
[1717101590814,6.20512474,167.67,167.59,51.5852]
[1717101590998,2.2074,167.62,167.6,6.6309]
[1717101591317,2.2074,167.62,167.61,45.0]
[1717101603630,2.2072,167.63,167.61,45.0]
[1717101603917,2.2068,167.67,167.63,2.2072]
[1717101604121,2.2068,167.67,167.63,45.0]
[1717101604428,2.2068,167.67,167.64,6.1787]
[1717101604617,2.2068,167.67,167.65,45.0]
[1717101605019,6.20529978,167.72,167.65,45.0]
[1717101605020,2.2068,167.66,167.65,45.0]
[1717101609724,2.2067,167.67,167.65,45.0]
[1717101609919,2.2066,167.68,167.65,45.0]
[1717101610132,2.2065,167.69,167.65,47.2069]
[1717101610341,2.2065,167.69,167.67,6.018]
[1717101610538,12.67329843,167.75,167.68,45.0]
[1717101610539,2.2063,167.7,167.68,45.0]
[1717101611042,2.2064,167.69,167.68,45.0]
[1717101615335,12.67329843,167.75,167.68,51.2432]
[1717101615536,6.0636,167.81,167.71,6.2432]
[1717101615724,2.2058,167.74,167.72,45.0]
[1717101616338,2.2059,167.73,167.72,45.0]
[1717101617237,2.2058,167.74,167.72,45.0]
[1717101618934,6.20340597,167.79,167.72,45.0]
[1717101619136,2.2058,167.74,167.72,45.0]
[1717101620239,2.2058,167.74,167.73,6.5996]
[1717101620455,6.20340597,167.79,167.73,51.5996]
[1717101620623,6.20340597,167.79,167.73,6.5996]
[1717101620955,6.20340597,167.79,167.74,51.5663]
[1717101621135,6.20340597,167.79,167.75,45.0]
[1717101621331,6.20340597,167.79,167.75,51.5663]
[1717101621524,6.20340597,167.79,167.76,6.5663]
[1717101621837,6.20340597,167.79,167.75,47.2056]
[1717101621838,6.4023,167.86,167.77,45.0]
[1717101622037,6.20201271,167.85,167.76,2.2055]
[1717101623032,6.20201271,167.85,167.75,47.2056]
[1717101623336,6.20201271,167.85,167.76,2.2054]
[1717101624819,6.20201271,167.85,167.77,2.2054]
[1717101625018,6.20201271,167.85,167.78,0.65897994]
[1717101625426,16.539068,167.88,167.78,0.65897994]
[1717101625627,6.20329725,167.87,167.78,0.65897994]
[1717101626232,6.20329725,167.87,167.77,2.86493591]
[1717101627039,6.20329725,167.87,167.79,2.205]
[1717101627243,1.355068,167.88,167.79,2.86445729]
[1717101627549,1.355068,167.88,167.8,2.2049]
[1717101627719,1.355068,167.88,167.79,2.2051]
[1717101628122,1.355068,167.88,167.78,2.2052]
[1717101628651,1.355068,167.88,167.77,45.0]
[1717101628951,1.355068,167.88,167.78,2.2052]
[1717101634430,1.355068,167.88,167.79,2.2051]
[1717101634838,1.355068,167.88,167.78,2.2052]
[1717101637050,1.355068,167.88,167.79,2.2051]
[1717101637735,1.355068,167.88,167.81,2.2047]
[1717101637955,1.355068,167.88,167.78,11.0259]
[1717101637956,1.355068,167.88,167.82,2.2046]
[1717101642268,1.355068,167.88,167.83,2.2045]
[1717101642569,1.355068,167.88,167.84,2.2044]
[1717101642752,1.355068,167.88,167.84,45.8843491]
[1717101642945,1.355068,167.88,167.84,48.0887491]
[1717101643257,1.355068,167.88,167.84,45.0]
[1717101645253,1.355068,167.88,167.84,47.2044]
[1717101646065,1.355068,167.88,167.84,45.0]
[1717101647460,1.355068,167.88,167.81,2.2048]
[1717101648060,1.355068,167.88,167.79,2.205]
[1717101648061,7.428468,167.88,167.79,2.205]
[1717101648273,7.428468,167.88,167.8,2.2049]
[1717101648441,7.428468,167.88,167.77,2.2053]
[1717101648872,7.428468,167.88,167.79,2.2051]
[1717101649246,7.428468,167.88,167.8,2.2049]
[1717101650053,7.428468,167.88,167.79,2.205]
[1717101650260,7.428468,167.88,167.78,2.2052]
[1717101650673,7.428468,167.88,167.79,2.2051]
[1717101651478,7.428468,167.88,167.78,2.2052]
[1717101651682,7.428468,167.88,167.77,45.0]
[1717101652170,7.428468,167.88,167.76,2.2054]
[1717101652575,7.428468,167.88,167.77,2.2053]
[1717101653357,6.21130842,167.87,167.78,2.2052]
[1717101653549,6.21130842,167.87,167.77,2.2053]
[1717101653972,6.21130842,167.87,167.78,2.2052]
[1717101660456,6.21130842,167.87,167.79,2.2051]
[1717101661282,6.21130842,167.87,167.75,4.4111]
[1717101661585,6.21130842,167.87,167.79,2.2051]
[1717101661967,7.428468,167.88,167.79,2.2051]
[1717101662286,6.21525511,167.87,167.79,2.2051]
[1717101663286,6.21525511,167.87,167.8,2.205]
[1717101663587,7.428468,167.88,167.81,2.2048]
[1717101664186,7.428468,167.88,167.8,2.2049]
[1717101664795,7.428468,167.88,167.78,25.55]
[1717101664982,1.355068,167.88,167.83,2.2045]
[1717101665293,1.355068,167.88,167.79,67.4302]
[1717101665662,1.355068,167.88,167.82,2.2047]
[1717101665970,1.355068,167.88,167.83,2.2045]
[1717101666488,1.355068,167.88,167.82,2.2047]
[1717101667587,1.355068,167.88,167.83,2.2045]
[1717101671367,7.815368,167.88,167.82,2.2046]
[1717101675187,7.815368,167.88,167.79,49.4102]
[1717101675188,7.815368,167.88,167.81,2.2048]
[1717101675882,16.5572,167.87,167.79,2.205]
[1717101676660,16.5572,167.87,167.8,2.2049]
[1717101677065,7.815368,167.88,167.81,2.2048]
[1717101677483,7.815368,167.88,167.8,2.2049]
[1717101683390,7.815368,167.88,167.79,2.205]
[1717101685496,7.815368,167.88,167.8,2.2049]
[1717101687489,7.815368,167.88,167.79,2.205]
[1717101687891,7.815368,167.88,167.8,2.205]
[1717101691108,7.815368,167.88,167.79,2.205]
[1717101693490,6.22470475,167.87,167.79,2.205]
[1717101695302,6.22470475,167.87,167.8,2.2049]
[1717101695487,6.22470475,167.87,167.79,2.205]
[1717101695681,6.22470475,167.87,167.79,2.2051]
[1717101698923,6.22470475,167.87,167.78,47.2052]
[1717101699101,6.22470475,167.87,167.79,45.0]
[1717101699288,6.22470475,167.87,167.78,2.2052]
[1717101699902,6.22470475,167.87,167.79,2.2051]
[1717101700101,6.22470475,167.87,167.78,2.2052]
[1717101701608,6.22470475,167.87,167.79,2.2051]
[1717101702230,6.5605,167.85,167.7,18.02]
[1717101702405,6.5605,167.83,167.71,7.15836031]
[1717101702607,6.5605,167.83,167.69,8.8257]
[1717101702815,6.5605,167.83,167.72,4.412]
[1717101703016,6.5605,167.83,167.75,2.2055]
[1717101703195,6.5605,167.83,167.74,2.2057]
[1717101703517,6.5605,167.83,167.75,2.2056]
[1717101703720,12.78530736,167.83,167.75,2.2056]
[1717101704019,12.78530736,167.83,167.72,4.412]
[1717101704020,12.78530736,167.83,167.72,22.432]
[1717101704330,6.5605,167.83,167.76,2.2055]
[1717101709723,6.5605,167.83,167.75,2.2056]
[1717101710415,6.5605,167.83,167.74,2.2057]
[1717101711001,6.5605,167.83,167.75,2.2056]
[1717101714937,12.78334682,167.83,167.75,2.2056]
[1717101715237,12.78334682,167.83,167.74,2.2057]
[1717101717927,12.78334682,167.83,167.73,47.2058]
[1717101718315,12.78334682,167.83,167.73,45.0]
[1717101719031,12.78334682,167.83,167.73,47.2059]
[1717101720037,12.78334682,167.83,167.73,45.0]
[1717101720224,16.3988,167.81,167.7,2.2062]
[1717101720425,16.3988,167.81,167.71,2.2061]
[1717101720627,16.3988,167.81,167.72,2.206]
[1717101723544,16.3988,167.81,167.71,2.2061]
[1717101725232,6.22294044,167.8,167.71,2.2061]
[1717101725848,6.0366,167.79,167.71,2.2061]
[1717101726339,6.0366,167.79,167.66,7.53]
[1717101726340,6.0366,167.79,167.69,2.2064]
[1717101727218,6.0366,167.79,167.7,2.2063]
[1717101728421,6.0366,167.79,167.73,2.2059]
[1717101728622,6.0366,167.79,167.73,2.2058]
[1717101730123,6.0366,167.79,167.72,2.2059]
[1717101731942,6.0366,167.79,167.72,4.4121]
[1717101732135,6.0366,167.79,167.74,2.2057]
[1717101733349,21.674,167.8,167.74,2.2057]
[1717101733540,21.674,167.8,167.73,47.2059]
[1717101733938,21.674,167.8,167.74,2.2057]
[1717101734952,21.674,167.8,167.73,47.2058]
[1717101735630,21.674,167.8,167.73,45.0]
[1717101736429,21.674,167.8,167.74,2.2056]
[1717101743257,21.674,167.8,167.73,2.2058]
[1717101749864,27.89395265,167.8,167.73,2.2058]
[1717101751377,21.674,167.8,167.74,2.2057]
[1717101753964,21.674,167.8,167.73,2.2058]
[1717101754151,21.674,167.8,167.74,2.2057]
[1717101754782,21.674,167.8,167.73,2.2058]
[1717101756270,21.674,167.8,167.72,47.2059]
[1717101756569,21.674,167.8,167.73,45.0]
[1717101756767,21.674,167.8,167.72,2.2059]
[1717101758663,21.674,167.8,167.73,2.2059]
[1717101759177,21.674,167.8,167.72,2.2059]
[1717101759369,21.674,167.8,167.71,2.2061]
[1717101759551,21.674,167.8,167.67,4.4132]
[1717101759756,21.674,167.8,167.68,7.16018935]
[1717101759975,15.0286,167.8,167.68,2.2065]
[1717101760171,6.0759,167.79,167.68,2.2065]
[1717101760987,6.0759,167.79,167.67,2.2066]
[1717101761185,6.017,167.77,167.66,2.2067]
[1717101761396,6.017,167.77,167.65,2.2069]
[1717101761554,6.017,167.77,167.66,7.16123859]
[1717101762053,6.20995133,167.76,167.66,7.16123859]
[1717101762254,6.20995133,167.76,167.65,2.2069]
[1717101762984,6.20995133,167.76,167.66,2.2068]
[1717101764268,6.20995133,167.76,167.65,2.2069]
[1717101764787,6.20995133,167.76,167.66,2.2068]
[1717101766479,22.8421,167.75,167.65,2.2069]
[1717101766687,6.2541,167.74,167.62,2.2072]
[1717101766880,6.2541,167.72,167.62,2.2072]
[1717101767578,6.2541,167.72,167.62,2.2073]
[1717101769870,6.2541,167.72,167.61,2.2074]
[1717101772290,6.21135324,167.71,167.61,2.2074]
[1717101776398,6.21135324,167.71,167.63,2.2072]
[1717101776573,6.21135324,167.71,167.6,45.0]
[1717101776773,6.21135324,167.71,167.63,2.2072]
[1717101778200,6.21135324,167.71,167.63,4.4143]
[1717101778406,23.2251,167.73,167.66,2.2067]
[1717101780064,23.2251,167.73,167.67,2.2066]
[1717101780263,23.2251,167.73,167.64,45.0]
[1717101780568,23.2251,167.73,167.64,47.207]
[1717101781297,23.2251,167.73,167.65,2.2069]
[1717101781672,23.2251,167.73,167.66,2.2068]
[1717101783772,6.21641679,167.75,167.65,26.8478]
[1717101784102,1.355068,167.76,167.68,2.2065]
[1717101784396,7.57012909,167.76,167.68,2.2065]